Cogmind - Beta 16.1 @@@ ROGUE MODE // 2026.04.28 @ 21:46:28 Player: Berg Result: Destroyed by G-47 Trooper with Particle Gun Performance ------------- Evolutions (2) 1000 Regions Visited (3) 600 Robots Destroyed (47) 235 Value Destroyed (1042) 1042 Prototype IDs (2) 40 Alien Tech Used (0) 0 Bonus (0) 0 TOTAL SCORE: 2917 Bonus ------- None Cogmind --------- Core Integrity 0/550 Matter 205/300 Energy 87/100 System Corruption 0% Temperature Cool (9) Movement Core (50) Location -8/Materials Parts ------- > --- POWER (1) -------- (None) > --- PROPULSION (4) --- (None) > --- UTILITY (4) ------ (None) > --- WEAPON (2) ------- (None) > --- INVENTORY (5) ---- Light Ion Engine High-capacity Matter Pod (150) Signal Interpreter Hacking Suite Mining Laser Peak State ------------ > --- POWER ------------ Light Nuclear Core > --- PROPULSION ------- Light Treads Light Treads Compact Wheel Compact Wheel > --- UTILITY ---------- High-capacity Storage Unit Seismic Detector Recoil Stabilizer Light Armor Plating > --- WEAPON ----------- Assault Rifle Assault Rifle > --- INVENTORY -------- Ion Engine Light Ion Engine Light Ion Engine Large Matter Pod Signal Interpreter Seismic Detector Core Shielding Hacking Suite Hacking Suite EM Pulse Gun EM Pulse Gun EM Pulse Gun Light Assault Rifle Grenade Launcher Grenade Launcher Mining Laser [Rating: 17] Favorites ----------- Power Light Ion Engine Engine Light Ion Engine Power Core Light Nuclear Core Propulsion Light Treads Treads Light Treads Wheel Compact Wheel Utility Light Armor Plating Device Recoil Stabilizer Storage High-capacity Storage Unit Processor Signal Interpreter Protection Light Armor Plating Weapon Assault Rifle Energy Gun EM Pulse Gun Ballistic Gun Assault Rifle Launcher Grenade Launcher Special Weapon Mining Laser Build | -11 -10 -10 -8 ------- Run | Yrd Mat Sub Mat Slots Evolved 4 | . . . 4 Power . | . . . . Propulsion 2 | . . . 2 Utility 2 | . . . 2 Weapon . | . . . . Parts Attached 36 | 7 10 . 19 Power 6 | 1 2 . 3 Engine 5 | 1 2 . 2 Core 1 | . . . 1 Reactor . | . . . . Propulsion 9 | 2 . . 7 Treads 6 | 2 . . 4 Leg . | . . . . Wheel 3 | . . . 3 Hover . | . . . . Flight . | . . . . Utility 11 | 2 5 . 4 Device 3 | 1 . . 2 Storage 4 | 1 3 . . Processor 1 | . 1 . . Hackware . | . . . . Protection 3 | . 1 . 2 Artifact . | . . . . Weapon 10 | 2 3 . 5 Energy Gun 2 | 1 . . 1 Energy Cannon . | . . . . Ballistic Gun 5 | 1 2 . 2 Ballistic Cannon . | . . . . Launcher 2 | . . . 2 Special Weapon 1 | . 1 . . Impact Weapon . | . . . . Slashing Weapon . | . . . . Piercing Weapon . | . . . . Special Melee Weapon . | . . . . Unidentified Prototypes . | . . . . Parts Lost 26 | . 2 . 24 Power 3 | . 1 . 2 Propulsion 8 | . . . 8 Utility 7 | . 1 . 6 Weapon 8 | . . . 8 Highest Loss Streak 20 | . 1 . 20 To Critical Strikes . | . . . . Average Backups 12 | 3 10 19 17 Power 1 | . 1 3 2 Propulsion 1 | 1 1 3 1 Utility 3 | . 3 6 6 Weapon 4 | . 4 7 6 Tool/Special . | . . . . Unused Backups 11 | . 3 . 8 Power 2 | . . . 2 Propulsion 2 | . 2 . . Utility 5 | . . . 5 Weapon 2 | . 1 . 1 Tool/Special . | . . . . Average Slot Usage (%) 93 | . 95 100 88 Engine 11 | . 14 14 6 Treads 25 | . 28 28 17 Wheel 4 | . . . 15 Device 3 | . 1 . 11 Storage 12 | . 14 14 8 Protection 8 | . 8 14 8 Energy Gun 1 | . 1 . . Ballistic Gun 23 | . 25 28 17 Peak Build Rating 17 | 7 9 9 17 Average Rating 9 | 5 7 9 13 On Entrance 6 | . 7 9 9 Avg Prop Armor Cover (%) 9 | . . . 9 Naked Turns 4 | . . . 4 Heaviest Build 54 | 13 50 50 54 Greatest Support 40 | 40 40 40 40 Greatest Overweight (x) 3 | 3 1 1 3 Average Overweight (x) . | . . 1 1 Largest Inventory Capacity 20 | 8 20 20 20 Average Capacity 15 | 7 14 20 19 Most Carried 20 | 4 20 19 20 Average Carried 12 | 3 10 19 17 Final Capacity 20 | 8 20 20 5 Final Carried 19 | 4 19 19 5 Class Distribution -------------------- 82% | Mutant 17% | Scavenger-Mutant Dominant Class ---------------- Mutant | -10/Materials Mutant | -10/Subcaves Scavenger-Mutant | -8/Materials Resources | -11 -10 -10 -8 ----------- Run | Yrd Mat Sub Mat Matter Collected 1514 | 312 639 . 563 Remotely . | . . . . Salvage Created 1811 | 136 804 . 871 Parts 110 | 6 61 . 43 Haulers Intercepted 3 | . 2 . 1 Recyclers Shooed 8 | 1 2 . 5 Parts Field Recycled . | . . . . Retrieved Matter . | . . . . Parts Self-Destructed . | . . . . Prevented . | . . . . Parts Restored . | . . . . Kills | -11 -10 -10 -8 ------- Run | Yrd Mat Sub Mat Combat Hostiles Destroyed 29 | . 16 . 13 Guns 28 | . 16 . 12 AOE 1 | . . . 1 Classes Destroyed 10 | 2 5 . 3 Worker 1 | . 1 . . Builder 2 | . . . 2 Tunneler 2 | 2 . . . Hauler 3 | . 2 . 1 Recycler 6 | 1 2 . 3 Operator 4 | . 3 . 1 Swarmer 9 | . 6 . 3 Grunt 18 | . 10 . 8 Duelist 1 | . . . 1 Sentry 1 | . . . 1 Best Kill Streak 3 | 3 3 . 3 Combat Bots Only 3 | . 3 . 3 Max Kills in Single Turn 2 | 1 1 . 2 Gunslinging 1 | . . . 1 Exploded 1 | . . . 1 Melee . | . . . . Uniques/NPCs Destroyed . | . . . . Combat | -11 -10 -10 -8 -------- Run | Yrd Mat Sub Mat Hostile Shots Fired 222 | . 82 . 140 Missed 56 | . 29 . 27 Hits 166 | . 53 . 113 Melee 16 | . . . 16 Projectile 150 | . 53 . 97 Critical Strikes 9 | . 1 . 8 Actively Blocked 1 | . . . 1 Damage Taken 2713 | . 548 . 2165 Core 624 | . 73 . 551 Absorbed by Shields . | . . . . Redirected to Shielding 51 | . . . 51 Core Remaining (%) 85 | 100 . 70 . Volleys Fired 184 | 14 96 . 74 Largest 2 | 1 2 . 2 Hottest 100 | 20 100 . 100 Shots Fired 341 | 14 191 . 136 Gun 336 | 14 190 . 132 Cannon . | . . . . Launcher 3 | . . . 3 Special 2 | . 1 . 1 Kinetic 313 | 14 177 . 122 Thermal 2 | . 1 . 1 Explosive 3 | . . . 3 Electromagnetic 23 | . 13 . 10 Robot Hit Streak 12 | 8 11 . 12 Robot Miss Streak 7 | 1 7 . 3 Penetration Max . | . . . . Secondary Targets 1 | . . . 1 Max Gunslinging Chain 1 | . . . 1 Shots Hit Robots 224 | 12 113 . 99 Core Hits 94 | 4 43 . 47 Critical Kills . | . . . . Critical Parts Destroyed 3 | . 2 . 1 Critical Strikes 3 | . 2 . 1 Destroy 3 | . 2 . 1 Melee Attacks . | . . . . Impact . | . . . . Slashing . | . . . . Piercing . | . . . . Sneak Attacks . | . . . . Combat Hostiles . | . . . . Follow-up Attacks . | . . . . Damage Inflicted 3088 | 157 1277 . 1654 Guns 2662 | 157 1277 . 1228 Cannons . | . . . . Explosions 421 | . . . 421 Melee . | . . . . Ramming 5 | . . . 5 Kinetic 2528 | 157 1201 . 1170 Thermal . | . . . . Explosive 421 | . . . 421 Electromagnetic 134 | . 76 . 58 Impact . | . . . . Slashing . | . . . . Piercing . | . . . . Highest Corruption . | . . . . Average Corruption . | . . . . Corruption Purged . | . . . . Corruption Blocked . | . . . . Overload Shots . | . . . . Overflow Damage 15 | . . . 15 Projectiles . | . . . . Explosions 15 | . . . 15 Melee . | . . . . Knockbacks . | . . . . Impact . | . . . . Kinetic . | . . . . Secondary . | . . . . Self-Inflicted Damage 117 | . . . 117 Shots 3 | . . . 3 Rammed 4 | . . . 4 Targets Rammed 4 | . . . 4 Kicked . | . . . . Crushed . | . . . . Highest Temperature 51 | . 24 . 51 Average Temperature 8 | . 6 . 12 Received Heat Transfer 1104 | . 240 . 864 Siege Activations . | . . . . Martial Activations . | . . . . Shielding Activations . | . . . . Robots Disrupted . | . . . . Combat Hostiles . | . . . . Robots Corrupted . | . . . . Combat Hostiles . | . . . . Parts Fried . | . . . . Impact Corruptions . | . . . . Robots Melted . | . . . . Combat Hostiles . | . . . . Parts Melted . | . . . . Heat Transferred . | . . . . Parts Sabotaged . | . . . . Parts Stolen . | . . . . Parts Stripped . | . . . . Power Chain Reactions . | . . . . Alert | -11 -10 -10 -8 ------- Run | Yrd Mat Sub Mat Maximum Alert Level . | . . . . Low Security (%) 100 | 100 100 . 100 Level 1 . | . . . . Level 2 . | . . . . Level 3 . | . . . . Level 4 . | . . . . Level 5 . | . . . . High Security . | . . . . Max Security . | . . . . Peak Influence 152 | 10 87 . 152 Initial . | . . . . Average 21 | 1 22 . 21 Influence Increases 1003 | 15 541 . 447 Destroy 0b10 Robot/C 580 | . 320 . 260 Destroy 0b10 Robot/NC 85 | 15 35 . 35 Destroy Leader 126 | . 64 . 62 Successful Hack 32 | . 32 . . Disable Machine 15 | . 15 . . Destroy Structure 15 | . . . 15 Partial Spotted 15 | . . . 15 Lose Combat Pursuer 135 | . 75 . 60 Influence Decreases 973 | 15 541 . 417 Time Decay 733 | 15 521 . 197 Lost Part 240 | . 20 . 220 Squads Dispatched 6 | . 3 . 3 Investigation 3 | . 2 . 1 Extermination . | . . . . Reinforcement 3 | . 1 . 2 Assault . | . . . . Garrison . | . . . . Intercept . | . . . . Searches Triggered . | . . . . Construction Impeded 1 | . . . 1 Haulers Reinforced . | . . . . Active Scanning Responses . | . . . . Cargo Convoy Interrupts . | . . . . Stealth | -11 -10 -10 -8 --------- Run | Yrd Mat Sub Mat Distress Signals 4 | . 3 . 1 Communications Jammed . | . . . . Distress Signals . | . . . . Times Spotted 78 | . 54 . 24 Peak Tracking Total 8 | . 4 . 8 Tactical Retreats 7 | . 4 . 3 Traps | -11 -10 -10 -8 ------- Run | Yrd Mat Sub Mat Traps Triggered 2 | . 1 . 1 Indirectly . | . . . . Trap Hack Attempts . | . . . . Triggered . | . . . . Disarmed . | . . . . Reprogrammed . | . . . . Reused . | . . . . Traps Extracted . | . . . . Installed . | . . . . Triggered . | . . . . Machines | -11 -10 -10 -8 ---------- Run | Yrd Mat Sub Mat Machines Disabled 1 | . 1 . . Max in Single Turn 1 | . 1 . . Garrison Access 1 | . . . 1 Machines Repaired . | . . . . Machines Dismantled . | . . . . Machines Sabotaged . | . . . . Overloaded Fab Kills . | . . . . Hacking | -11 -10 -10 -8 --------- Run | Yrd Mat Sub Mat Machines Accessed 8 | . 6 . 2 Terminals 7 | . 6 . 1 Fabricators . | . . . . Repair Stations . | . . . . Recycling Units . | . . . . Scanalyzers . | . . . . Garrison Access 1 | . . . 1 Total Hacks 22 | . 17 . 5 Successful 11 | . 9 . 2 Failed 11 | . 8 . 3 Catastrophic 4 | . 3 . 1 Database Lockouts . | . . . . Manual 15 | . 12 . 3 Terminals 20 | . 17 . 3 Fabricators . | . . . . Repair Stations . | . . . . Recycling Units . | . . . . Scanalyzers . | . . . . Garrison Access 2 | . . . 2 Terminal Hacks 5 | . 5 . . Robot Analysis 2 | . 2 . . Prototype ID Bank 1 | . 1 . . Emergency Access Points 1 | . 1 . . Hauler Manifests 1 | . 1 . . Fabricator Hacks . | . . . . Repair Station Hacks . | . . . . Recycling Unit Hacks . | . . . . Scanalyzer . | . . . . Garrison Access Hacks 1 | . . . 1 Seal Access 1 | . . . 1 Unauthorized Hacks 5 | . 4 . 1 Terminals 5 | . 4 . 1 Assimilate 2 | . 2 . . Operators 3 | . 2 . 1 Fabricators . | . . . . Repair Stations . | . . . . Recycling Units . | . . . . Scanalyzers . | . . . . Garrison Access . | . . . . Data Cores Recovered 1 | . 1 . . Used . | . . . . Hacking Detections 7 | . 6 . 1 Full Trace Events . | . . . . Feedback Events . | . . . . Feedback Blocked . | . . . . Robot Schematics Acquired . | . . . . Robots Built . | . . . . Authchips . | . . . . Time . | . . . . Total Robot Build Rating . | . . . . Part Schematics Acquired . | . . . . Parts Built . | . . . . Authchips . | . . . . Time . | . . . . Total Part Build Rating . | . . . . Part Studies Acquired . | . . . . Parts Repaired . | . . . . Time . | . . . . Parts Recycled . | . . . . Recycled Matter . | . . . . Retrieved Matter . | . . . . Retrieved Components . | . . . . Parts Scanalyzed . | . . . . Part Schematics Acquired . | . . . . Parts Damaged . | . . . . Bothacking | -11 -10 -10 -8 ------------ Run | Yrd Mat Sub Mat Used RIF Installer . | . . . . Robots Hacked . | . . . . Non-combat . | . . . . Combat . | . . . . Robot Hacks Applied . | . . . . Relay Couplers Released . | . . . . Fabnet Peak Effective % . | . . . . Robots Rewired . | . . . . Allies Hacked . | . . . . Hacks Repelled . | . . . . Allies | -11 -10 -10 -8 -------- Run | Yrd Mat Sub Mat Total Allies 1 | . 1 . . Largest Group 1 | . 1 . . Highest-Rated Group 10 | . 10 . . Highest-Rated Ally 10 | . 10 . . Total Orders . | . . . . Ally Attacks . | . . . . Total Damage . | . . . . Kills . | . . . . Allies Corrupted . | . . . . Allies Melted . | . . . . Intel | -11 -10 -10 -8 ------- Run | Yrd Mat Sub Mat Active Infowar (turns) 737 | 9 197 . 531 Seismic 737 | 9 197 . 531 Robot Analysis Total 2 | . 2 . . Derelict Logs Recovered . | . . . . Drone Launches . | . . . . Drone Recoveries . | . . . . Exploration | -11 -10 -10 -8 ------------- Run | Yrd Mat Sub Mat Turns Passed 3825 | 121 2664 34 1006 Spaces Moved 1504 | 51 1098 15 340 Core 19 | 16 . . 3 Treads 1340 | 35 1098 15 192 Legs . | . . . . Wheels 145 | . . . 145 Hover . | . . . . Flight . | . . . . Fastest Speed 50 | 50 160 240 50 Average Speed 193 | 153 197 240 185 Slowest Speed 240 | 200 240 240 240 Overloaded Moves . | . . . . Propulsion Burnouts . | . . . . Robots Hopped . | . . . . Potential Cave-ins . | . . . . Cave-ins Triggered . | . . . . Exploration Rate (%) 33 | 5 95 3 29 Regions Visited 3 Branch Regions 1 Pre-discovered Areas . | . . . . Known Exits Taken . | . . . . Unknown Exits Taken 3 | 1 1 1 . Scrap Searched . | . . . . Spaces Dug 1 | . . . 1 Terrain Destroyed 13 | . . . 13 Melee . | . . . . Projectile 1 | . . . 1 AOE 12 | . . . 12 Terrain Rammed . | . . . . Walls Destroyed . | . . . . Machines Disabled . | . . . . Actions | -11 -10 -10 -8 --------- Run | Yrd Mat Sub Mat Total 2085 | 76 1421 14 574 Wait 305 | 1 182 . 122 Move 1501 | 50 1097 14 340 Hop . | . . . . Pick Up 31 | 4 20 . 7 Fast Attach 13 | 7 1 . 5 Attach 20 | . 6 . 14 Detach 6 | . 5 . 1 Swap 9 | . 6 . 3 Drop 12 | . 8 . 4 Fire 184 | 14 96 . 74 Melee . | . . . . Ram 1 | . . . 1 Kick . | . . . . Crush 3 | . . . 3 Escape Stasis . | . . . . Rewire . | . . . . Trap . | . . . . Miscellaneous . | . . . . Route ------- -11/Scrapyard -10/Materials (discovered 4 exits: *Mat x3 / [*Sub]) -10/Subcaves -8/Materials History --------- Turn | Location | Event 17 | -11/Scrapyard | Discovered new exit (range 16) 122 | -11/Scrapyard | Entered Materials 305 | -10/Materials | Build established: Mutant 474 | -10/Materials | Discovered new exit (range 15) 1032 | -10/Materials | Discovered new exit (range 6) 1238 | -10/Materials | Discovered new exit (range 16) 1659 | -10/Materials | Discovered new exit (range 7) 2502 | -10/Materials | Identified exit to Materials 2786 | -10/Materials | Entered Subcaves 2786 | -10/Subcaves | Discovered new exit (range 15) 2803 | -10/Subcaves | Shifting Twisted Machinery released Sub. Laser 2820 | -10/Subcaves | Entered Materials 2820 | -8/Materials | Evolved 4 slots: Propulsion x2, Utility x2 3431 | -8/Materials | Build established: Scavenger-Mutant 3802 | -8/Materials | Core integrity fell below 50% 3823 | -8/Materials | Core integrity fell below 20% 3826 | -8/Materials | Destroyed by G-47 Trooper with Particle Gun Last Messages --------------- 03806_ R-06 Scavenger collects Lrg. Matter Pod. 03811_ Hcp. Storage Unit destroyed. 03811_ R-06 Scavenger collects Lgt. Ion Engine. 03814_ R-06 Scavenger collects Hacking Suite. 03816_ Acquired Grenade Launcher. 03818_ Ion Engine destroyed. 03818_ Destroyed Ion Engine. 03818_ Core Shielding destroyed. 03819_ EM Pulse Gun destroyed. 03820_ Com. Wheel destroyed. 03820_ Destroyed Com. Wheel. 03821_ ALERT: Construction progress impeded, dispatching reinforcements to local area. 03822_ The unstable cave ceiling collapses. 03822_ L-31 Rogue destroyed. 03822_ Grenade Launcher destroyed. 03822_ Destroyed Grenade Launcher. 03822_ U-05 Engineer destroyed. 03824_ Acquired Grenade Launcher. 03824_ Grenade Launcher destroyed. Map ----- +----------------------------------------------------+ | ?????????????????????????????????????????????????? | | ?????????????????????????????????????????????????? | | ?????????????????????????????????????????????????? | | ?????????????????????????????????????????????????? | | ?????????????????????????????????????????????????? | | ?????????????????????????????????????????????????? | | ?????????????????????????????????????????????????? | | ?????????????????????????????????????????????????? | | ?????????????????????????????????????????????????? | | ?????????????????????????????????????????????????? | | ???????????? ??????????????????????????????????? | | ???????????? ??????????????????????????????????? | | ???????????? ??????????????????????????????????? | | ???????????? ??????????????????????????????????? | | ???????????? ??????????????????????????????????? | | ???????????? ??????????????????????????????????? | | ???????????? ??????????????????????????????????? | | ???????????? ??????????????????????????????????? | | ????????????# #???????? ?????????????????????????? | | ????????????# #?????###+######???????????????????? | | ????????????# #?????# #???????????????????? | | ????????????# #?????# """ #???????????????????? | | ???????? ???# #?????# """ #???????????????????? | | ???????? ???# #?????# """ ########????????????? | | ???????? ???# #?????# # [ = #????????????? | | ???????# ???# #?????#""" @ #????????????? | | ???????# #??# #?????#"R """ #????????????? | | ???????# #??# #?????#""" g%""" #????????????? | | ???????# #??# #?????# % g""" #????????????? | | ####+### ##?# #?????### !g [#????????????? | | #?# #???????# =% +######????????????? | | ###/######### g ?????????? | | """ """ # %% + % % ?????????? | | """""""" # """ "" ### ?????????? | | """"" " # """[""" #?# ##+####### ????????? | | # """ """ #?#######? ????????????????? | | / """ """ #?????????? ""???????????????? | | # """ """ #???????????"""??????????????? | | ! # #????????????""??????????????? | | ###### ! #????????????????????????????? | | ################????????????????????????????? | | ## """ #????????????????????????????????? | | # ## """"" #????????????????????????????????? | | # ## """"" #????????????????????????????????? | | # ## """"" #????????????????????????????????? | | # ## " " #????????????????????????????????? | | # ## #????????????????????????????????? | | # ## | #????????????????????????????????? | | # ## #????????????????????????????????? | | # ######+#####????????????????????????????????? | +----------------------------------------------------+ Best States ------------- Heat Dissipation 31 Energy Generation 14 Energy Capacity 250 Matter Stores 300 Matter Capacity 300 Sight Range 16 Terrain Scan Density 10 Armor Coverage 150 Core Shielding 20 Evasion (%) 40 Recoil Reduction 6 Item Schematics ----------------- None Robot Schematics ------------------ None Fabricated ------------ Nothing Repaired ---------- Nothing Studied --------- None Alien Tech Used ----------------- None Achievements -------------- None Challenges ------------ None Game ------ Seed WeaponPulsarHammerchucker Manual? 0 Play Time 00:35:03 Cumulative 108.3 hours Start 2026.04.28 @ 21:06:50 End 2026.04.28 @ 21:46:28 Sessions 1 Manual Loads 0 Difficulty Rogue Special Mode None Game No. 99 Rogue 99 Adventurer 0 Explorer 0 Win Type - Total 1 Types 1/0/0/0/0/0/0/0/0/0 Lore% 38 Gallery% 43 Achievement% 30 Wizard Run 0 Options --------- Layout 0 ASCII 0 Keyboard 1 Movement Numpad Keybinds 0 Fullscreen 2 Font 24/Smallcaps Map View 76x50 Zoom Use 0% Tactical HUD 1 Map Filters NONE Filters NONE Steam 1 RUN: 86cd1111-b62f-41b3-9f52-5b4f279df2b5